Cogmind - Beta 9.6 @@@ ROGUE MODE // 2020.04.16 @ 09:51:26 Player: OccultOnion Result: Destroyed by Y-54 Guardian with Flak Gun Performance ------------- Evolutions (4) 2000 Regions Visited (6) 1200 Robots Destroyed (51) 255 Value Destroyed (1859) 1859 Prototype IDs (0) 0 Alien Tech Used (0) 0 Bonus (0) 0 TOTAL SCORE: 5314 Bonus ------- None Cogmind --------- Core Integrity 0/850 Matter 174/300 Energy 38/100 System Corruption 4% Temperature Cool (24) Movement Core (100) Ox1 Location -6/Extension Parts ------- > --- POWER (2) -------- (None) > --- PROPULSION (5) --- (None) > --- UTILITY (5) ------ (None) > --- WEAPON (3) ------- Force Rifle > --- INVENTORY (4) ---- Carbon-fiber Leg Advanced Heat Sink Peak State ------------ > --- POWER ------------ Light Angular Momentum Engine Light Angular Momentum Engine > --- PROPULSION ------- Carbon-fiber Leg Titanium Leg Wheel Armored Huge Wheel > --- UTILITY ---------- Heat Sink Advanced Heat Sink Advanced Heat Sink Small Storage Unit Hardened Medium Armor Plating > --- WEAPON ----------- Heavy Ion Cannon Plasma Cannon Long-range Missile Launcher > --- INVENTORY -------- Carbon-fiber Leg Armored Huge Wheel Advanced Heat Sink Long-range Missile Launcher [Rating: 55] Favorites ----------- Power Nuclear Core Engine Light Angular Momentum Engine Power Core Nuclear Core Propulsion Aluminum Leg Treads Light Treads Leg Aluminum Leg Wheel Wheel Hover Unit Gravmag Array Flight Unit Cesium-ion Thruster Utility Small Storage Unit Device Heat Sink Storage Small Storage Unit Hackware Hacking Suite Protection Power Shielding Weapon Heavy Rocket Launcher Energy Gun Medium Laser Energy Cannon Plasma Cannon Ballistic Gun Gauss Rifle Ballistic Cannon Magnetic Acceleration Cannon Launcher Heavy Rocket Launcher Slashing Weapon Scythe Build | -11 -10 -9 -8 -7 -6 -6 ------- Run | Scr Mat Mat Mat Fac Fac Ext Slots Evolved 8 | . . 2 2 2 2 . Power 1 | . . . . 1 . . Propulsion 3 | . . 1 1 . 1 . Utility 3 | . . 1 1 . 1 . Weapon 1 | . . . . 1 . . Parts Attached 75 | 1 6 9 20 13 15 11 Power 10 | . 1 1 3 2 3 . Engine 4 | . 1 . . . 3 . Core 6 | . . 1 3 2 . . Reactor . | . . . . . . . Propulsion 23 | . 1 2 8 5 3 4 Treads 1 | . . 1 . . . . Leg 10 | . . 1 6 . 2 1 Wheel 8 | . 1 . . 4 1 2 Hover 1 | . . . . . . 1 Flight 3 | . . . 2 1 . . Utility 13 | 1 . 1 2 3 4 2 Device 5 | . . . 1 1 2 1 Storage 1 | 1 . . . . . . Processor . | . . . . . . . Hackware 1 | . . . . 1 . . Protection 6 | . . 1 1 1 2 1 Artifact . | . . . . . . . Weapon 29 | . 4 5 7 3 5 5 Energy Gun 11 | . 4 3 1 . 1 2 Energy Cannon 3 | . . . . . 3 . Ballistic Gun 5 | . . . 4 1 . . Ballistic Cannon 1 | . . . . . . 1 Launcher 7 | . . 2 . 2 1 2 Special Weapon . | . . . . . . . Impact Weapon . | . . . . . . . Slashing Weapon 2 | . . . 2 . . . Piercing Weapon . | . . . . . . . Special Melee Weapon . | . . . . . . . Unidentified Prototypes . | . . . . . . . Parts Lost 60 | . 4 3 13 10 7 23 Power 8 | . 1 . 2 1 2 2 Propulsion 18 | . 1 1 5 4 . 7 Utility 13 | . . . 1 3 2 7 Weapon 21 | . 2 2 5 2 3 7 Highest Loss Streak 18 | . 3 1 9 4 7 18 Average Slot Usage (%) 84 | . 94 98 85 84 84 52 Engine 3 | . 13 . . . 5 6 Core 6 | . . 10 7 10 5 . Treads 1 | . . 8 1 . . . Leg 14 | . 23 13 20 12 7 6 Wheel 8 | . 2 11 1 10 18 6 Flight 1 | . . . 5 . . . Device 5 | . . . 6 6 8 11 Storage 13 | . 28 22 18 9 6 3 Hackware 1 | . . . . 3 3 . Protection 7 | . . 11 9 7 8 3 Energy Gun 7 | . 25 20 4 1 2 . Energy Cannon 1 | . . . . . 3 6 Ballistic Gun 3 | . . . 6 4 4 . Launcher 2 | . . . . 5 5 2 Slashing Weapon 2 | . . . 3 6 . . Naked Turns 10 | . . . . . . 10 Heaviest Build 54 | 14 18 22 25 35 54 54 Greatest Support 54 | 20 20 10 50 54 38 44 Greatest Overweight (x) 5 | . 1 2 3 1 1 5 Average Overweight (x) . | . . 1 . . . . Largest Inventory Capacity 8 | 8 8 8 8 8 6 6 Average Capacity 6 | 6 8 8 8 6 6 5 Most Carried 8 | 6 8 8 8 8 6 6 Average Carried 6 | 5 7 7 6 6 5 3 Final Capacity 8 | 8 8 8 8 6 6 4 Final Carried 8 | 6 7 8 6 6 6 2 Class Distribution -------------------- 85% | Mutant 4% | Scavenger-Tank 4% | Tank 3% | Scavenger-Bomber Dominant Class ---------------- Mutant | -10/Materials Mutant | -9/Materials Mutant | -8/Materials Mutant | -7/Factory Mutant | -6/Factory Mutant | -6/Extension Resources | -11 -10 -9 -8 -7 -6 -6 ----------- Run | Scr Mat Mat Mat Fac Fac Ext Matter Collected 1298 | 210 45 79 249 270 219 226 Remotely . | . . . . . . . Salvage Created 1746 | 62 156 172 598 341 259 158 Parts 76 | 2 7 10 21 11 8 17 Haulers Intercepted 1 | . . . 1 . . . Recyclers Shooed 3 | . . . . . . 3 Parts Field Recycled . | . . . . . . . Retrieved Matter . | . . . . . . . Parts Self-Destructed . | . . . . . . . Prevented . | . . . . . . . Kills | -11 -10 -9 -8 -7 -6 -6 ------- Run | Scr Mat Mat Mat Fac Fac Ext Combat Hostiles Destroyed 43 | . 4 6 11 12 4 6 Melee 5 | . . . 5 . . . Guns 18 | . 4 5 6 2 1 . Cannons 3 | . . . . . . 3 AOE 17 | . . 1 . 10 3 3 Classes Destroyed 11 | 1 1 2 2 2 . 3 Worker 2 | . . . 2 . . . Builder 2 | . . . . . . 2 Tunneler 1 | . . . . . . 1 Hauler 1 | . . . 1 . . . Recycler 2 | 1 . . 1 . . . Swarmer 9 | . . 3 3 . . 3 Grunt 23 | . 4 2 7 7 3 . Brawler 2 | . . . . 1 1 . Sentry 6 | . . 1 1 2 . 2 Programmer 2 | . . . . 2 . . Behemoth 1 | . . . . . . 1 Best Kill Streak 8 | 1 2 3 5 3 4 8 Combat Bots Only 5 | . 2 3 3 3 4 5 Max Kills in Single Turn 2 | 1 1 1 2 2 2 2 Gunslinging . | . . . . . . . Exploded 2 | . . 1 . 2 2 2 Melee 1 | . . . 1 . . . Uniques/NPCs Destroyed . | . . . . . . . Combat | -11 -10 -9 -8 -7 -6 -6 -------- Run | Scr Mat Mat Mat Fac Fac Ext Damage Taken 6497 | . 486 127 1901 748 933 2302 Core 1426 | . 104 . 371 101 160 690 Absorbed by Shields 51 | . . . . . . 51 Core Remaining (%) 75 | 100 58 100 32 85 . . Volleys Fired 173 | 4 27 16 50 31 23 22 Largest 3 | 2 2 2 2 2 2 3 Hottest 188 | 90 130 115 112 67 97 188 Shots Fired 269 | 8 35 29 80 51 29 37 Gun 208 | 8 35 27 80 28 27 3 Cannon 24 | . . . . . . 24 Launcher 37 | . . 2 . 23 2 10 Special . | . . . . . . . Kinetic 87 | . . . 49 24 11 3 Thermal 130 | 8 35 27 20 . 16 24 Explosive 37 | . . 2 . 23 2 10 Electromagnetic 15 | . . . 11 4 . . Robot Hit Streak 19 | 5 9 9 19 7 8 17 Robot Miss Streak 5 | 2 3 1 5 5 1 3 Penetration Max 1 | . . . . 1 1 . Secondary Targets 1 | . . . 1 . . . Max Gunslinging Chain 1 | . . . 1 . . . Shots Hit Robots 188 | 5 20 22 76 29 9 27 Core Hits 120 | 2 7 8 32 29 15 27 Critical Hits 2 | . . . 1 . 1 . Critical Kills 1 | . . . . . 1 . Critical Parts Destroyed 1 | . . . 1 . . . Melee Attacks 38 | . . . 27 11 . . Impact . | . . . . . . . Slashing 38 | . . . 27 11 . . Piercing . | . . . . . . . Sneak Attacks 3 | . . . 3 . . . Combat Hostiles . | . . . . . . . Follow-up Attacks . | . . . . . . . Damage Inflicted 6171 | 58 266 310 1594 1688 558 1697 Guns 2237 | 58 266 289 913 442 188 81 Cannons 525 | . . . . . . 525 Explosions 2698 | . . 21 . 1246 356 1075 Melee 681 | . . . 681 . . . Ramming 30 | . . . . . 14 16 Kinetic 1083 | . . . 496 406 129 52 Thermal 1476 | 58 266 289 250 . 59 554 Explosive 2559 | . . 21 . 1246 217 1075 Electromagnetic 342 | . . . 167 36 139 . Impact . | . . . . . . . Slashing 681 | . . . 681 . . . Piercing . | . . . . . . . Highest Corruption 4 | . . . . 3 4 4 Average Corruption 3 | . . . . 2 3 4 Corruption Purged . | . . . . . . . Effects 12 | . . . . 1 5 6 Message Errors 3 | . . . . . 2 1 Matter Fused 2 | . . . . . 1 1 Energy Discharges 3 | . . . . 1 1 1 Data Loss (minor) 1 | . . . . . 1 . Targeting Errors 1 | . . . . . . 1 Weapon Failures 2 | . . . . . . 2 Overload Shots . | . . . . . . . Overflow Damage 180 | . . . 96 72 . 12 Projectiles . | . . . . . . . Explosions 84 | . . . . 72 . 12 Melee 96 | . . . 96 . . . Knockbacks . | . . . . . . . Impact . | . . . . . . . Kinetic . | . . . . . . . Secondary . | . . . . . . . Self-Inflicted Damage 78 | . . . . 41 13 24 Shots 3 | . . . . 1 1 1 Rammed 11 | . . . . . 5 6 Targets Rammed 11 | . . . . . 5 6 Kicked . | . . . . . . . Crushed . | . . . . . . . Highest Temperature 342 | 120 342 243 332 111 87 8 Average Temperature 100 | 61 159 91 115 30 39 5 Received Heat Transfer 2436 | . 279 45 963 198 414 537 Effects 1 | . 1 . . . . . Shutdowns 1 | . 1 . . . . . Siege Activations . | . . . . . . . Robots Corrupted . | . . . . . . . Combat Hostiles . | . . . . . . . Parts Fried 1 | . . . 1 . . . Impact Corruptions . | . . . . . . . Robots Melted . | . . . . . . . Combat Hostiles . | . . . . . . . Parts Melted 2 | . . 1 1 . . . Heat Transferred 3213 | 149 691 777 629 . 111 856 Parts Sabotaged . | . . . . . . . Parts Stolen . | . . . . . . . Parts Stripped . | . . . . . . . Power Chain Reactions . | . . . . . . . Missiles Intercepted . | . . . . . . . Alert | -11 -10 -9 -8 -7 -6 -6 ------- Run | Scr Mat Mat Mat Fac Fac Ext Peak Influence 333 | 5 100 175 258 333 232 196 Average Influence 108 | 4 45 85 101 106 181 133 Maximum Alert Level 1 | . . . 1 1 1 . Low Security (%) 87 | 100 100 100 85 83 71 100 Level 1 12 | . . . 14 16 28 . Level 2 . | . . . . . . . Level 3 . | . . . . . . . Level 4 . | . . . . . . . Level 5 . | . . . . . . . High Security . | . . . . . . . Max Security . | . . . . . . . Squads Dispatched 11 | . 1 . 5 4 . 1 Investigation 6 | . 1 . 3 2 . . Extermination 1 | . . . . 1 . . Reinforcement 4 | . . . 2 1 . 1 Assault . | . . . . . . . Garrison . | . . . . . . . Intercept . | . . . . . . . Construction Impeded 2 | . . . . 1 . 1 Haulers Reinforced . | . . . . . . . Stealth | -11 -10 -9 -8 -7 -6 -6 --------- Run | Scr Mat Mat Mat Fac Fac Ext Distress Signals 4 | . 1 . . . . 3 Communications Jammed . | . . . . . . . Distress Signals . | . . . . . . . Times Spotted 65 | . 7 7 20 14 5 12 Peak Tracking Total 6 | . 4 3 4 4 4 6 Tactical Retreats 12 | . 2 . 6 2 1 1 Traps | -11 -10 -9 -8 -7 -6 -6 ------- Run | Scr Mat Mat Mat Fac Fac Ext Traps Triggered 12 | . 1 . 1 5 4 1 Indirectly . | . . . . . . . Trap Hack Attempts . | . . . . . . . Triggered . | . . . . . . . Disarmed . | . . . . . . . Reprogrammed . | . . . . . . . Reused . | . . . . . . . Traps Extracted . | . . . . . . . Installed . | . . . . . . . Triggered . | . . . . . . . Machines | -11 -10 -9 -8 -7 -6 -6 ---------- Run | Scr Mat Mat Mat Fac Fac Ext Machines Disabled 6 | . . . 1 3 2 . Max in Single Turn 2 | . . . 1 1 2 . Garrison Access 1 | . . . . 1 . . Machines Sabotaged . | . . . . . . . Garrisons Compromised . | . . . . . . . Overloaded Fab Kills . | . . . . . . . Fab Network Shutdowns . | . . . . . . . Hacking | -11 -10 -9 -8 -7 -6 -6 --------- Run | Scr Mat Mat Mat Fac Fac Ext Machines Accessed 12 | . 2 2 4 2 . 2 Terminals 10 | . 2 2 4 . . 2 Fabricators 1 | . . . . 1 . . Repair Stations . | . . . . . . . Recycling Units . | . . . . . . . Scanalyzers . | . . . . . . . Garrison Access 1 | . . . . 1 . . Total Hacks 30 | . 4 5 13 2 . 6 Successful 13 | . . 2 6 2 . 3 Failed 16 | . 4 3 6 . . 3 Catastrophic 6 | . 1 1 2 . . 2 Database Lockouts 4 | . . . 4 . . . Manual 17 | . 1 4 11 . . 1 Terminals 28 | . 4 5 13 . . 6 Fabricators 1 | . . . . 1 . . Repair Stations . | . . . . . . . Recycling Units . | . . . . . . . Scanalyzers . | . . . . . . . Garrison Access 1 | . . . . 1 . . Terminal Hacks 11 | . . 2 6 . . 3 Robot Analysis 1 | . . . 1 . . . Level Access Points 1 | . . . 1 . . . Alert Level 3 | . . 1 2 . . . Locate Traps 3 | . . 1 . . . 2 Hauler Manifests 1 | . . . 1 . . . Zone Layout 2 | . . . 1 . . 1 Fabricator Hacks 1 | . . . . 1 . . Network Status 1 | . . . . 1 . . Repair Station Hacks . | . . . . . . . Recycling Unit Hacks . | . . . . . . . Scanalyzer . | . . . . . . . Garrison Access Hacks 1 | . . . . 1 . . Seal Access 1 | . . . . 1 . . Unauthorized Hacks . | . . . . . . . Terminals . | . . . . . . . Fabricators . | . . . . . . . Repair Stations . | . . . . . . . Recycling Units . | . . . . . . . Scanalyzers . | . . . . . . . Garrison Access . | . . . . . . . Data Cores Recovered . | . . . . . . . Used . | . . . . . . . Hacking Detections 9 | . 2 2 3 . . 2 Full Trace Events 2 | . 1 . 1 . . . Feedback Events . | . . . . . . . Feedback Blocked . | . . . . . . . Robot Schematics Acquired . | . . . . . . . Robots Built . | . . . . . . . Matter . | . . . . . . . Time . | . . . . . . . Total Robot Build Rating . | . . . . . . . Part Schematics Acquired . | . . . . . . . Parts Built . | . . . . . . . Matter . | . . . . . . . Time . | . . . . . . . Total Part Build Rating . | . . . . . . . Parts Repaired . | . . . . . . . Time . | . . . . . . . Parts Recycled . | . . . . . . . Recycled Matter . | . . . . . . . Retrieved Matter . | . . . . . . . Retrieved Components . | . . . . . . . Parts Scanalyzed . | . . . . . . . Part Schematics Acquired . | . . . . . . . Parts Damaged . | . . . . . . . Bothacking | -11 -10 -9 -8 -7 -6 -6 ------------ Run | Scr Mat Mat Mat Fac Fac Ext Used RIF Installer . | . . . . . . . Robots Hacked . | . . . . . . . Non-combat . | . . . . . . . Combat . | . . . . . . . Robot Hacks Applied . | . . . . . . . Relay Couplers Released . | . . . . . . . Robots Rewired . | . . . . . . . Allies Hacked . | . . . . . . . Hacks Repelled . | . . . . . . . Allies | -11 -10 -9 -8 -7 -6 -6 -------- Run | Scr Mat Mat Mat Fac Fac Ext Total Allies . | . . . . . . . Largest Group . | . . . . . . . Highest-Rated Group . | . . . . . . . Highest-Rated Ally . | . . . . . . . Total Orders . | . . . . . . . Ally Attacks . | . . . . . . . Total Damage . | . . . . . . . Kills . | . . . . . . . Allies Corrupted . | . . . . . . . Allies Melted . | . . . . . . . Intel | -11 -10 -9 -8 -7 -6 -6 ------- Run | Scr Mat Mat Mat Fac Fac Ext Robot Analysis Total 1 | . . . 1 . . . Derelict Logs Recovered . | . . . . . . . Drone Launches . | . . . . . . . Drone Recoveries . | . . . . . . . Exploration | -11 -10 -9 -8 -7 -6 -6 ------------- Run | Scr Mat Mat Mat Fac Fac Ext Turns Passed 2558 | 45 298 299 503 777 384 252 Spaces Moved 1682 | 25 172 206 209 596 275 199 Core 41 | . . . 9 . . 32 Treads . | . . . . . . . Legs 513 | 25 115 . 189 181 . 3 Wheels 1066 | . 57 206 11 415 275 102 Hover 62 | . . . . . . 62 Flight . | . . . . . . . Fastest Speed 50 | 120 90 90 100 90 90 50 Average Speed 103 | 120 110 99 123 104 98 84 Slowest Speed 300 | 120 150 100 200 150 100 300 Overloaded Moves . | . . . . . . . Propulsion Burnouts . | . . . . . . . Robots Hopped . | . . . . . . . Cave-ins Triggered . | . . . . . . . Exploration Rate (%) 20 | 3 35 23 24 16 5 35 Regions Visited 6 Branch Regions 1 Pre-discovered Areas . | . . . . . . . Known Exits Taken 1 | . . . 1 . . . Unknown Exits Taken 5 | 1 1 1 . 1 1 . Scrap Searched . | . . . . . . . Spaces Dug 49 | . . 11 8 30 . . Terrain Destroyed 385 | . . 23 8 278 23 53 Melee 19 | . . . 8 11 . . Projectile 3 | . . . . 2 . 1 AOE 363 | . . 23 . 265 23 52 Actions | -11 -10 -9 -8 -7 -6 -6 --------- Run | Scr Mat Mat Mat Fac Fac Ext Total 2181 | 32 245 270 338 688 360 248 Wait 86 | . 28 26 12 . 20 . Move 1676 | 24 171 205 208 595 274 199 Hop . | . . . . . . . Pick Up 89 | 2 9 10 17 26 18 7 Fast Attach . | . . . . . . . Attach 63 | 1 4 5 15 13 14 11 Detach 1 | . . . . . . 1 Swap 12 | . 2 4 5 . 1 . Drop 30 | 1 4 4 4 12 5 . Fire 173 | 4 27 16 50 31 23 22 Melee 38 | . . . 27 11 . . Ram 11 | . . . . . 5 6 Kick . | . . . . . . . Crush . | . . . . . . . Escape Stasis 2 | . . . . . . 2 Rewire . | . . . . . . . Trap . | . . . . . . . Miscellaneous . | . . . . . . . Route ------- -11/Scrapyard -10/Materials -9/Materials (discovered 2 exits: *Mat / [*Min]) -8/Materials (discovered 3 exits: *Fac x3) -7/Factory (discovered 2 exits: *Fac / [*Low]) -6/Factory -6/Extension History --------- Turn | Location | Event 13 | -11/Scrapyard | Discovered new exit (range 3) 46 | -11/Scrapyard | Entered Materials 297 | -10/Materials | Lost 3 parts (1p1n1w) 311 | -10/Materials | Build established: Mutant 326 | -10/Materials | Discovered new exit (range 3) 344 | -10/Materials | Entered another Materials area 344 | -9/Materials | Evolved 2 slots: Propulsion x1, Utility x1 560 | -9/Materials | Discovered new exit (range 6) 634 | -9/Materials | Discovered new exit (range 9) 643 | -9/Materials | Entered another Materials area 643 | -8/Materials | Evolved 2 slots: Propulsion x1, Utility x1 766 | -8/Materials | Lost 9 parts (1p4n1u3w) 828 | -8/Materials | Identified exit to Factory 922 | -8/Materials | Core integrity fell below 50% 1087 | -8/Materials | Central database locked down 1146 | -8/Materials | Entered Factory 1146 | -7/Factory | Evolved 2 slots: Power x1, Weapon x1 1148 | -7/Factory | Lost 4 parts (1p1n2w) 1389 | -7/Factory | Lost 4 parts (2n1u1w) 1475 | -7/Factory | Discovered new exit (range 16) 1918 | -7/Factory | Discovered new exit (range 5) 1923 | -7/Factory | Entered another Factory area 1923 | -6/Factory | Evolved 2 slots: Propulsion x1, Utility x1 2233 | -6/Factory | Lost 7 parts (2p2u3w) 2296 | -6/Factory | Discovered new exit (range 12) 2307 | -6/Factory | Entered Extension 2391 | -6/Extension | Spotted B-75 Beast 2410 | -6/Extension | Destroyed B-75 Beast 2421 | -6/Extension | Spotted B-75 Beast 2455 | -6/Extension | Core integrity fell below 50% 2457 | -6/Extension | Disrupted transfer network 2466 | -6/Extension | Core integrity fell below 20% 2496 | -6/Extension | Lost 18 parts (2p6n5u5w) 2559 | -6/Extension | Destroyed by Y-54 Guardian with Flak Gun Last Messages --------------- 02511_ Y-54 Guardian destroyed. 02514_ Acquired 48 matter. 02515_ Acquired Gatling Laser. 02517_ XDTLHM=:1 |ZNSV 8ZP|7 RDDNTW& 02518_ Acquired Imp. Light Armor Plating. 02523_ Gravmag Array destroyed. 02529_ Acquired Force Rifle. 02529_ R-10 Processor collects Imp. Heat Sink. 02530_ Magnetic Acceleration Cannon destroyed. 02531_ Slammed into Y-54 Guardian. 02533_ R-10 Processor collects Imp. Heat Sink. 02534_ Triggered Stasis Trap. 02534_ A bubble of rippling energy engulfs the area. 02534_ Field strength at 85. 02535_ Field strength at 70. 02538_ Field strength at 39. 02539_ Imp. Light Armor Plating destroyed. 02539_ Stasis field depleted. 02541_ Imp. Heat Sink destroyed. 02548_ Gatling Laser destroyed. Map ----- +----------------------------------------------------+ | | | | | | | | | | | | | | | | | | | | | | | | | | | | | | | | | | | | | ?????????????????????????????????????????????????? | | ?????????????????????????????????????????????????? | | ?????????????????????????????????????????????????? | | ???????????????????????????????########??????????? | | ?????####??????????????????????# #??????????? | | ?????#""#??????????????????????# #??????????? | | ?#####T"######################## ! #??????????? | | # Y @ + /#??????????? | | # ##+############### !#??????????? | | # # | #?????#"""# !#??????????? | | # + T #######"T"###+####??????????? | | # ############# " #??????????? | | ? ##??????????#!!! ####### #??????????? | | ? #??????????#!!! #??#### #??????????? | | ? #??????????#!!! #??#""" #??????????? | | ? #??????????####!###??#"R ##### #??????????? | | ?###?????????????###????#""" #???? #??????????? | | ????????????????????????#### #???# #??????????? | | ???????????????????????????# #???# #??????????? | | ???????????????????????????# #???# #??????????? | | ???????????????????????????# #???# #??????????? | | ???????????????????????????# #???# #??????????? | | ???????????????????????????# ##+##### #??????????? | | ???????????????????????????# # # #??????????? | | ???????????????????????????# # # #??????????? | | ???????????????????????????# # ! + #??????????? | | ???????????????????????????# + # #??????????? | | ???????????????????????????### ! # #??????????? | | ?????????????????????????????# # #??????????? | | ?????????????????????????????######## #??????????? | | ????????????????????????????????????# #???#??#???? | | ??????????????????????????????????### ### ## ###?? | +----------------------------------------------------+ Best States ------------- Heat Dissipation 85 Energy Generation 31 Energy Capacity 350 Matter Stores 300 Matter Capacity 300 Sight Range 16 Terrain Scan Range 16 Terrain Scan Density 10 Armor Coverage 375 Resistance: TH 10 Power Shielding 33 Evasion (%) 53 Offensive Hacking 10 Item Schematics ----------------- None Robot Schematics ------------------ None Fabricated ------------ Nothing Alien Tech Used ----------------- None Achievements -------------- None Challenges ------------ None Game ------ Seed SniperDispersionCasing Manual? 0 Play Time 00:37:10 Cumulative 49.2 hours Start 2020.04.16 @ 09:15:21 End 2020.04.16 @ 09:51:26 Sessions 1 Manual Loads 0 Difficulty Rogue Special Mode None Game No. 122 Rogue 122 Adventurer 0 Explorer 0 Win Type - Total 0 Types 0/0/0/0/0/0/0 Lore% 27 Gallery% 45 Achievement% 30 Wizard Run 0 Options --------- ASCII 0 Keyboard 1 Movement Numpad Keybinds 0 Fullscreen 2 Font 18/SmallcapsGlow Map View 76x50 Tactical HUD 1 Map Filters NONE Filters NONE Steam 1 RUN: 842e2cde-993f-427f-9964-6914d1f91d2e